bitfinex-derivatives/quotes_ETHF0:USTF0_20260131
["timestamp","ask_amount","ask_price","bid_price","bid_amount"]
[1769877167552,3.98236292,2527.7,2526.3,3.8985412]
[1769877169852,2.31748502,2528.0,2526.3,4.0967512]
[1769877170054,0.0042714,2528.2,2526.5,3.8985412]
[1769877170451,3.98663432,2528.2,2526.5,3.8985412]
[1769877170956,3.98236292,2528.0,2526.5,3.8985412]
[1769877174458,3.896,2527.9,2526.5,3.8985412]
[1769877176061,7.87836292,2527.9,2526.5,3.8985412]
[1769877176360,3.98236292,2527.8,2526.4,0.19821]
[1769877177461,3.98236292,2527.8,2526.4,4.0967512]
[1769877177960,3.98663432,2528.2,2526.6,3.8985412]
[1769877178160,5.21655914,2528.1,2526.6,3.8985412]
[1769877178355,3.98663432,2528.2,2526.6,3.8985412]
[1769877178959,3.98663432,2528.2,2526.6,4.0967312]
[1769877179159,3.98663432,2528.2,2527.1,3.8985412]
[1769877179160,0.0042714,2528.2,2527.1,3.8985412]
[1769877179760,0.0042714,2528.2,2527.1,4.0966912]
[1769877180266,3.98663432,2528.2,2527.1,3.8985412]
[1769877180667,3.98663432,2528.2,2526.7,4.0967312]
[1769877181462,3.98236292,2528.0,2526.7,3.8985412]
[1769877181762,3.98236292,2527.8,2526.3,3.8985412]
[1769877181958,3.896,2527.7,2526.6,4.0967312]
[1769877182159,3.896,2527.7,2526.8,3.8985412]
[1769877182664,3.9002714,2528.2,2526.8,3.8985412]
[1769877182964,3.9002714,2528.2,2527.2,3.8985412]
[1769877183756,3.98236292,2528.1,2527.1,0.19816]
[1769877183957,3.9002714,2528.2,2527.2,3.8985412]
[1769877184862,0.0042714,2528.2,2527.4,3.8985412]
[1769877185062,3.896,2528.7,2527.4,3.8985412]
[1769877185258,2.31748502,2529.2,2526.0,2.322]
[1769877185259,3.98236292,2529.2,2527.7,3.8985412]
[1769877185560,3.98236292,2528.9,2526.9,3.8985412]
[1769877185761,3.98236292,2528.5,2526.9,3.8985412]
[1769877185963,3.98236292,2528.3,2526.9,3.9018132]
[1769877186464,2.32114068,2528.5,2526.9,3.9018132]
[1769877186465,0.00365566,2528.5,2526.9,4.0999832]
[1769877186664,5.2332526,2528.4,2526.9,4.0999832]
[1769877186865,0.00365566,2528.5,2526.9,4.0999832]
[1769877187165,5.23443018,2528.4,2526.9,4.0999832]
[1769877187361,0.00365566,2528.5,2526.9,4.0999832]
[1769877187569,3.65245739,2528.3,2526.9,4.0999832]
[1769877187965,0.00365566,2528.5,2526.9,4.0999832]
[1769877188163,5.23695305,2528.4,2526.9,4.0999832]
[1769877188360,5.24020948,2528.3,2526.9,4.0999832]
[1769877188565,3.65245739,2528.4,2526.9,4.0999832]
[1769877188763,3.65245739,2528.2,2526.9,4.0999832]
[1769877189264,0.00365566,2528.5,2527.4,3.90774865]
[1769877189458,0.00365566,2528.5,2527.4,4.10587865]
[1769877189663,2.31748502,2529.0,2527.8,3.90774865]
[1769877189863,5.22457503,2528.9,2527.8,3.90774865]
[1769877190063,2.31748502,2529.1,2527.8,3.90774865]
[1769877190267,5.22287652,2529.0,2527.8,3.90774865]
[1769877190563,5.22287652,2528.9,2527.8,3.90774865]
[1769877190764,3.65674539,2528.9,2527.8,3.90774865]
[1769877190964,5.22902965,2528.8,2527.8,3.90774865]
[1769877191160,0.004288,2528.9,2527.8,3.90774865]
[1769877191365,5.23139038,2528.8,2527.8,3.90774865]
[1769877191560,0.004288,2528.9,2527.8,3.90774865]
[1769877192466,0.004288,2528.9,2527.8,4.10584865]
[1769877192868,2.31748502,2529.5,2528.0,3.90774865]
[1769877193164,5.23260189,2529.4,2528.0,4.10582865]
[1769877193371,8.88505928,2529.3,2528.0,4.10582865]
[1769877193567,3.65245739,2529.1,2527.0,3.90774865]
[1769877193867,3.65245739,2528.9,2527.0,3.90774865]
[1769877194662,3.65245739,2528.9,2526.9,3.566272]
[1769877194663,3.65245739,2528.9,2527.5,3.90774865]
[1769877194863,3.65245739,2528.7,2527.5,3.90774865]
[1769877195465,5.97278741,2529.1,2527.5,3.90774865]
[1769877195673,5.96994241,2528.9,2527.5,3.90774865]
[1769877195873,5.22493429,2528.8,2527.5,3.90774865]
[1769877196065,0.002845,2529.1,2527.6,0.19812]
[1769877196269,5.22456976,2529.0,2527.7,3.90774865]
[1769877196470,0.002845,2529.1,2527.7,3.90774865]
[1769877196774,0.002845,2529.1,2527.9,4.10583865]
[1769877198376,3.65530239,2529.1,2527.9,4.10583865]
[1769877199372,0.002845,2529.1,2527.9,4.10583865]
[1769877200169,0.002845,2529.1,2528.3,3.90774865]
[1769877200373,3.65245739,2529.8,2528.3,4.10580865]
[1769877201275,5.22488723,2529.7,2528.3,4.10580865]
[1769877201473,3.65696798,2529.8,2528.3,4.10580865]
[1769877201872,5.22628603,2529.7,2528.3,4.10580865]
[1769877202081,3.65696798,2529.8,2528.3,4.10580865]
[1769877202275,0.00451059,2529.8,2528.5,4.10579865]
[1769877203170,5.22428289,2529.7,2528.1,3.90774865]
[1769877203371,3.65245739,2529.5,2528.1,3.90774865]
[1769877203680,3.65245739,2529.3,2528.1,3.90774865]
[1769877203879,3.65245739,2529.1,2527.5,3.90774865]
[1769877204183,3.65245739,2528.9,2527.5,3.90774865]
[1769877204376,3.65245739,2528.7,2527.4,0.19813]
[1769877204578,3.65245739,2528.5,2527.2,3.90774865]
[1769877204774,5.22177961,2528.4,2527.2,3.90774865]
[1769877204974,3.65245739,2528.3,2527.2,3.90774865]
[1769877205374,3.65245739,2528.3,2526.9,3.91102065]
[1769877205880,3.65245739,2528.1,2526.9,3.91102065]
[1769877206280,3.65245739,2527.9,2526.9,0.003272]
[1769877206481,3.65731296,2527.9,2526.9,0.003272]
[1769877207280,8.87734826,2527.8,2526.9,0.003272]
[1769877207481,3.65245739,2527.8,2526.9,0.003272]
[1769877208277,3.65245739,2527.5,2526.0,4.10598865]
[1769877208483,5.2220715,2527.4,2526.0,4.10598865]
[1769877208784,4.008,2527.7,2526.2,3.90774865]
[1769877209175,5.97479798,2527.9,2526.2,3.91097812]
[1769877209381,9.23286582,2527.8,2526.2,3.91097812]
[1769877209585,8.87288491,2527.7,2526.2,3.91097812]
[1769877209781,3.65245739,2527.7,2526.2,3.91097812]
[1769877211384,0.00485557,2527.9,2526.6,3.90774865]
[1769877212386,3.65245739,2528.8,2527.0,3.90774865]
[1769877212690,3.65245739,2528.8,2527.2,3.90774865]
[1769877212879,3.65245739,2528.6,2526.5,3.90774865]
[1769877213284,3.65748478,2528.6,2526.5,3.90774865]
[1769877213787,3.65245739,2528.4,2526.5,3.90774865]
[1769877213988,3.65245739,2528.2,2526.5,3.90774865]
[1769877218385,3.65245739,2528.2,2526.2,0.00322947]
[1769877218386,3.76773302,2527.9,2526.2,0.00322947]
[1769877218590,3.76773302,2527.7,2526.2,0.00322947]
[1769877218781,3.76773302,2527.5,2526.2,0.00322947]
[1769877218988,3.76773302,2527.5,2526.2,3.88844333]
[1769877219286,7.76873302,2527.5,2526.2,3.88844333]
[1769877219789,3.76773302,2527.5,2526.2,3.88844333]
[1769877220089,3.76773302,2527.6,2526.2,3.88844333]
[1769877222496,3.67728136,2527.9,2526.6,3.8636063]
[1769877222790,4.0,2528.3,2526.9,3.8636063]
[1769877222984,0.00502739,2528.6,2527.2,3.8636063]
[1769877223388,0.00502739,2528.6,2527.4,3.8636063]
[1769877223595,3.68230875,2528.6,2527.4,3.8636063]
[1769877224794,0.00502739,2528.6,2527.4,3.8636063]
[1769877225596,3.67728136,2528.4,2526.8,4.0617763]
[1769877226195,3.68230875,2528.6,2527.0,3.8636063]
[1769877226899,0.00502739,2528.6,2527.2,3.8636063]
[1769877227199,0.00502739,2528.6,2527.2,4.0617463]
[1769877227393,0.00502739,2528.6,2527.4,3.8636063]
[1769877228299,0.00502739,2528.6,2527.4,4.0617363]
[1769877228594,0.00502739,2528.6,2527.8,3.8636063]
[1769877228789,3.67728136,2529.6,2528.0,3.8636063]
[1769877229699,3.68102658,2529.6,2528.0,3.86699841]
[1769877230099,0.00374522,2529.6,2528.0,4.06508841]
[1769877233712,0.00374522,2529.6,2528.1,0.19808]
[1769877233913,0.00374522,2529.6,2528.2,3.8636063]
[1769877236514,0.00374522,2529.6,2528.4,4.0616563]
[1769877237810,3.68102658,2529.6,2528.4,3.8636063]
[1769877238415,3.68102658,2529.6,2528.1,3.8636063]
[1769877238616,0.00374522,2529.6,2528.3,3.8636063]
[1769877239818,3.68102658,2529.6,2528.3,3.8636063]
[1769877240019,3.68102658,2529.6,2528.0,3.86699841]
[1769877240413,3.67728136,2529.4,2528.0,3.86699841]
[1769877242115,0.00374522,2529.6,2528.2,3.8636063]
[1769877242317,3.68102658,2529.6,2528.4,3.8636063]
[1769877242720,3.68102658,2529.6,2528.0,0.00339211]
[1769877242721,3.67728136,2529.4,2528.0,3.86699841]
[1769877243519,3.67728136,2529.4,2528.0,0.00339211]
[1769877243717,3.67728136,2529.2,2528.0,0.00339211]
[1769877243913,3.67728136,2529.0,2527.4,3.8636063]
[1769877244223,3.67728136,2528.8,2527.4,3.8636063]
[1769877244819,3.67728136,2528.8,2527.4,3.86766011]
[1769877245814,3.67728136,2528.6,2527.4,0.00405381]
[1769877246522,2.31748502,2528.2,2526.3,3.8636063]
[1769877246712,3.67728136,2528.0,2526.3,3.8636063]
[1769877246918,3.96699566,2527.8,2526.3,3.8636063]
[1769877247324,3.96699566,2527.6,2526.3,3.8636063]
[1769877247524,3.97161924,2527.6,2526.3,3.86837096]
[1769877248622,0.00462358,2527.6,2526.3,3.86837096]
[1769877248819,3.97161924,2527.6,2526.3,3.86837096]
[1769877249520,0.00462358,2527.6,2526.3,3.86837096]
[1769877250120,0.00462358,2527.6,2526.3,4.06659096]
[1769877250325,2.31748502,2528.4,2526.5,4.08507107]
[1769877250521,2.31748502,2528.9,2527.1,3.88687107]
[1769877250717,34.76750359,2529.0,2527.1,3.88687107]
[1769877250718,5.09809872,2528.8,2527.1,3.88687107]
[1769877250918,3.96699566,2529.0,2527.1,4.08502107]
[1769877251122,3.96699566,2529.0,2526.7,1.87869837]
[1769877251123,5.09833619,2528.9,2527.4,3.88687107]
[1769877251323,0.00505736,2528.9,2527.4,3.88687107]
[1769877251925,0.00505736,2528.9,2527.6,3.88687107]
[1769877254528,2.31748502,2529.7,2528.0,3.88687107]
[1769877254733,3.96699566,2529.8,2528.0,3.88687107]
[1769877254933,9.07429082,2529.7,2528.0,3.88687107]
[1769877255233,3.96699566,2529.7,2528.0,3.88687107]
[1769877255434,5.1072782,2529.6,2528.0,3.88687107]
[1769877255634,0.00321026,2529.6,2528.0,3.88687107]
[1769877256533,3.96699566,2529.4,2528.0,3.88687107]
[1769877256739,9.07730055,2529.3,2528.0,3.88687107]
[1769877256931,3.96699566,2529.3,2528.0,3.88687107]
[1769877257830,2.32069528,2529.6,2528.0,3.88687107]
[1769877258032,5.11093509,2529.6,2528.0,3.88687107]
[1769877258232,0.00321026,2529.6,2528.2,3.88687107]
[1769877258433,0.00321026,2529.6,2528.2,3.88998013]
[1769877259130,3.97020592,2529.6,2528.2,3.88998013]
[1769877259336,0.00321026,2529.6,2528.2,3.88998013]
[1769877260929,0.00321026,2529.6,2528.4,4.08492107]
[1769877261435,0.00321026,2529.6,2528.6,3.88687107]
[1769877261628,0.00321026,2529.6,2528.4,0.3131022]
[1769877261629,6.28448068,2530.6,2528.8,3.88687107]
[1769877261832,5.11485397,2530.5,2528.8,3.88687107]
[1769877262030,3.96699566,2530.6,2528.8,3.88687107]
[1769877262229,5.11629645,2530.5,2528.8,3.88687107]
[1769877262442,3.96699566,2530.6,2528.8,3.88687107]
[1769877262637,9.08275034,2530.5,2528.8,3.88687107]
[1769877262936,3.96699566,2530.5,2528.8,3.88687107]
[1769877263643,3.96699566,2530.2,2528.5,3.88687107]
[1769877263840,3.96699566,2530.0,2528.5,3.88687107]
[1769877264145,3.96699566,2529.6,2528.2,0.00310906]
[1769877264344,3.96699566,2529.4,2528.2,0.00310906]
[1769877264740,3.96699566,2529.4,2528.2,3.88998013]
[1769877267340,3.96699566,2529.4,2528.2,0.00310906]
[1769877268139,3.96699566,2529.2,2528.2,0.00310906]
[1769877268537,3.96699566,2529.0,2527.6,3.88687107]
[1769877268742,3.96699566,2528.8,2527.6,3.88687107]
[1769877269444,3.9708896,2528.8,2527.6,3.89071855]
[1769877274044,3.96699566,2528.5,2527.2,3.88687107]
[1769877274248,3.96699566,2528.3,2527.2,3.88687107]
[1769877274648,3.96699566,2528.3,2526.6,4.08506107]
[1769877274947,3.96699566,2528.1,2526.6,3.88687107]
[1769877275147,13.0819896,2528.0,2526.6,3.88996869]
[1769877275347,7.96799566,2528.0,2526.6,3.88996869]
[1769877275548,3.96699566,2527.8,2526.6,3.88996869]
[1769877275943,5.1123338,2527.7,2526.6,0.00309762]
[1769877276138,3.96699566,2527.6,2526.6,0.00153819]
[1769877277145,3.95672673,2527.7,2526.6,3.6499517]
[1769877277347,9.06567097,2527.6,2526.6,0.00153819]
[1769877277546,3.95672673,2527.6,2526.6,0.00153819]
[1769877280247,3.95672673,2527.6,2526.6,3.6499517]
[1769877282551,3.68635848,2527.9,2526.6,3.6499517]
[1769877282945,5.10028695,2527.8,2526.6,3.6499517]
[1769877283150,3.68635848,2527.7,2526.6,3.6499517]
[1769877284253,7.68735848,2528.0,2526.6,3.6499517]
[1769877284455,3.68635848,2527.8,2526.6,3.6499517]
[1769877286060,3.896,2527.7,2526.6,3.6499517]
[1769877286251,3.68635848,2527.6,2526.6,3.6499517]
[1769877286457,4.001,2528.0,2526.6,0.00153819]
[1769877286458,3.68635848,2527.4,2526.6,0.00153819]
[1769877286659,3.68635848,2527.2,2526.0,3.75581139]
[1769877287556,3.68635848,2527.6,2526.0,3.75581139]
[1769877287755,8.77799022,2527.5,2526.0,3.75950855]
[1769877287959,3.68635848,2527.5,2526.0,3.75950855]
[1769877288857,12.57808472,2528.0,2526.0,3.75950855]
[1769877288858,3.68635848,2528.0,2526.0,3.75950855]
[1769877289155,3.68635848,2527.8,2526.3,3.75581139]
[1769877289355,3.68635848,2527.6,2526.3,3.75581139]
[1769877289552,5.09136524,2527.5,2526.3,3.75581139]
[1769877289763,3.68635848,2527.4,2526.3,3.75581139]
[1769877290157,3.68635848,2527.4,2526.0,3.75950855]
[1769877290461,3.68635848,2527.3,2526.0,3.75950855]
[1769877290657,2.31748502,2527.7,2526.0,3.75950855]
[1769877290860,6.0038435,2527.9,2526.0,3.95774855]
[1769877291161,3.68635848,2527.7,2526.0,3.95774855]
[1769877291364,3.68635848,2527.5,2526.0,3.95774855]
[1769877291553,3.68635848,2527.8,2526.2,3.75581139]
[1769877291751,4.035,2527.9,2526.2,3.75581139]
[1769877292056,4.035,2527.9,2526.4,3.75581139]
[1769877292252,3.68635848,2527.8,2526.4,3.75581139]
[1769877292458,2.31748502,2528.2,2526.4,3.75581139]
[1769877292754,34.76750359,2528.3,2526.4,3.75581139]
[1769877292755,5.1041536,2528.1,2526.4,3.75581139]
[1769877292957,6.0038435,2528.3,2526.7,3.75581139]
[1769877293164,5.10460142,2528.2,2526.7,3.75581139]
[1769877293453,5.11057159,2528.1,2526.7,3.75581139]
[1769877293658,4.61108472,2528.5,2526.9,3.75581139]
[1769877293659,2.31748502,2528.5,2526.9,3.75581139]
[1769877293862,3.68635848,2528.4,2527.1,3.75581139]
[1769877294057,8.79855285,2528.3,2527.1,3.75581139]
[1769877294259,3.68635848,2528.3,2527.1,3.75581139]
[1769877295760,3.68635848,2528.3,2525.3,0.31632318]
[1769877295761,3.68635848,2526.6,2524.9,15.46890277]
[1769877295960,3.68635848,2526.2,2524.6,3.75581139]
[1769877296265,3.68635848,2525.7,2523.7,3.75581139]
[1769877296467,3.68635848,2525.3,2523.7,3.75581139]
[1769877296766,3.68635848,2525.1,2523.7,3.75947414]
[1769877296960,3.68635848,2524.9,2523.7,0.00366275]
[1769877297168,3.68635848,2524.7,2523.7,0.00366275]
[1769877297468,3.68635848,2524.6,2523.7,0.00366275]
[1769877297762,3.68635848,2525.2,2523.7,3.75947414]
[1769877298161,0.00403933,2525.3,2523.9,3.75581139]
[1769877300056,3.69039781,2525.3,2523.9,3.75581139]
[1769877300660,4.05403933,2525.3,2523.9,3.75581139]
[1769877300867,3.68635848,2525.2,2523.9,3.75581139]
[1769877301566,3.69039781,2525.3,2523.9,3.75581139]
[1769877302465,0.00403933,2525.3,2523.9,3.75581139]
[1769877303665,3.68635848,2526.4,2523.9,3.75581139]
[1769877303864,8.69418629,2526.3,2523.9,3.75581139]
[1769877304065,3.68635848,2526.3,2524.3,3.75581139]
[1769877304369,3.68635848,2526.3,2523.7,0.00366275]
[1769877304370,2.12657888,2526.6,2524.5,3.75581139]
[1769877304668,3.68635848,2526.4,2524.5,3.75581139]
[1769877304869,3.68635848,2526.2,2524.5,3.75581139]
[1769877305060,3.68635848,2525.4,2523.7,0.00366275]
[1769877305256,3.68635848,2525.2,2523.7,3.75947414]
[1769877305461,9.25000607,2525.3,2523.7,0.00366275]
[1769877305462,3.68635848,2525.0,2523.7,0.00366275]
[1769877305958,3.68635848,2524.8,2523.7,0.00366275]
[1769877306161,0.19839,2524.1,2522.4,3.75581139]
[1769877306366,3.68635848,2524.6,2522.4,3.75581139]
[1769877306367,2.31094257,2524.6,2522.4,3.75581139]
[1769877306667,4.047,2524.2,2522.4,3.75581139]
[1769877306869,3.98690401,2524.1,2522.4,3.75581139]
[1769877307065,3.98690401,2524.1,2522.4,3.76029744]
[1769877307670,3.98690401,2523.9,2522.4,0.00448605]
[1769877307868,3.98690401,2523.9,2522.4,3.64095706]
[1769877308066,3.98690401,2524.2,2522.4,3.64095706]
[1769877310471,3.98690401,2524.4,2522.5,0.19852]
[1769877310674,3.99137556,2524.8,2522.8,3.83496101]
[1769877311971,3.98690401,2524.7,2522.8,3.83496101]
[1769877313169,3.98690401,2524.7,2523.0,3.63647101]
[1769877313372,0.00447155,2524.8,2523.0,3.63647101]
[1769877314172,0.00447155,2524.8,2523.2,3.63647101]
[1769877314969,0.00447155,2524.8,2523.8,3.63647101]
[1769877316074,3.98690401,2525.5,2524.0,3.63647101]
[1769877316277,4.18513401,2526.2,2524.2,3.63647101]
[1769877316470,3.98690401,2526.0,2524.2,3.63647101]
[1769877316777,3.98690401,2526.3,2524.6,3.83482101]
[1769877316972,1.8125016,2526.6,2525.0,3.63647101]
[1769877317180,1.8160054,2526.6,2525.0,3.6408318]
[1769877317382,1.8160054,2526.6,2525.0,3.8391518]
[1769877318874,5.80290941,2526.6,2525.0,3.8391518]
[1769877319075,3.98690401,2526.5,2525.0,3.6408318]
[1769877319268,1.8160054,2526.6,2525.0,3.6408318]
[1769877319472,0.0035038,2526.6,2525.0,3.6408318]
[1769877319674,0.0035038,2526.6,2525.0,3.8391518]
[1769877321075,3.99040781,2526.6,2525.0,3.8391518]
[1769877321881,3.99040781,2526.6,2525.0,3.6408318]
[1769877322780,5.00327961,2526.5,2525.0,3.6408318]
[1769877322976,5.00327961,2526.4,2525.0,3.6408318]
[1769877323182,0.0035038,2526.6,2525.0,3.6408318]
[1769877323883,3.99040781,2526.6,2525.0,3.6408318]
[1769877324278,5.01786443,2526.5,2525.0,3.6408318]
[1769877324478,3.99040781,2526.6,2525.0,3.6408318]
[1769877324879,3.98690401,2526.2,2525.0,0.00436079]
[1769877325079,9.004519,2526.1,2525.0,0.00436079]
[1769877325280,5.0631258,2526.0,2525.0,0.00436079]
[1769877325482,5.0631258,2525.9,2525.0,0.00436079]
[1769877325682,6.29784658,2526.1,2525.0,0.00436079]
[1769877325886,5.0630906,2526.0,2525.0,0.00436079]
[1769877326189,2.31094257,2526.3,2525.0,3.6408318]
[1769877326387,9.05044349,2526.3,2525.0,3.6408318]
[1769877326588,2.31444637,2526.6,2525.0,3.6408318]
[1769877326788,5.06156629,2526.5,2525.0,3.6408318]
[1769877326987,5.06156629,2526.4,2525.0,3.6408318]
[1769877327288,3.98690401,2526.5,2525.0,3.6408318]
[1769877327488,5.06145714,2526.4,2525.0,3.6408318]
[1769877327687,3.98690401,2526.5,2525.0,3.6408318]
[1769877327891,5.05880258,2526.4,2525.0,3.6408318]
[1769877328092,3.98690401,2526.5,2525.0,3.6408318]
[1769877329488,0.0035038,2526.6,2525.2,3.63647101]
[1769877329794,3.99040781,2526.6,2525.2,3.63647101]
[1769877329994,5.05944588,2526.5,2525.2,3.63647101]
[1769877330191,3.99040781,2526.6,2525.2,3.63647101]
[1769877330391,9.04660697,2526.5,2525.2,3.63647101]
[1769877330586,3.98690401,2526.5,2525.2,3.63647101]
[1769877330793,3.98690401,2526.3,2525.0,0.00436079]
[1769877331093,8.03990401,2526.3,2525.0,0.00436079]
[1769877331294,3.98690401,2526.2,2525.0,0.00436079]
[1769877332285,3.98690401,2526.2,2525.0,3.6408318]
[1769877333285,4.053,2526.3,2525.0,3.6408318]
[1769877333891,3.99040781,2526.6,2525.2,3.63647101]
[1769877335890,3.98690401,2524.9,2522.7,3.63647101]
[1769877336096,3.98690401,2524.5,2522.7,3.63647101]
[1769877336290,3.98690401,2524.3,2522.7,3.63647101]
[1769877336898,3.98971604,2524.3,2522.7,3.6401279]
[1769877339093,0.00281203,2524.3,2522.7,3.6401279]
[1769877340687,3.91304585,2524.3,2522.7,3.6401279]
[1769877341495,3.94461072,2524.1,2522.7,3.6401279]
[1769877343990,3.94461072,2522.9,2521.0,3.92695472]
[1769877344195,0.19846,2523.3,2521.0,3.92695472]
[1769877344196,3.94461072,2522.7,2521.0,3.92695472]
[1769877344589,3.94461072,2523.1,2521.2,3.92695472]
[1769877345100,3.94461072,2523.1,2521.2,3.93029808]
[1769877345694,3.94461072,2522.9,2521.2,3.93029808]
[1769877345896,3.94461072,2522.7,2521.2,0.00334336]
[1769877346402,3.94461072,2522.7,2521.3,3.92695472]
[1769877347100,3.94461072,2522.7,2521.2,0.00334336]
[1769877347598,3.94461072,2522.7,2521.2,3.93029808]
[1769877349098,3.94461072,2523.0,2521.2,3.93029808]
[1769877349605,3.94461072,2522.5,2521.2,0.00334336]
[1769877349897,3.94892733,2522.5,2521.2,0.00334336]
[1769877350903,3.94461072,2522.3,2521.2,0.00334336]
[1769877351203,0.00431661,2522.5,2521.2,3.93029808]
[1769877351898,0.00431661,2522.5,2521.4,3.92695472]
[1769877353199,0.00431661,2522.5,2521.4,4.12555472]
[1769877353592,3.94461072,2523.2,2521.4,4.12555472]
[1769877354695,3.94826339,2523.2,2521.4,4.12555472]
[1769877354898,0.00365267,2523.2,2521.4,4.12555472]
[1769877355299,3.94826339,2523.2,2521.4,4.12555472]
[1769877358104,0.00365267,2523.2,2521.6,3.92695472]
[1769877359404,0.00365267,2523.2,2521.6,4.12554472]
[1769877359702,3.94826339,2523.2,2521.6,4.12554472]
[1769877361106,0.00365267,2523.2,2521.6,4.12554472]
[1769877361503,0.00365267,2523.2,2521.9,3.92695472]
[1769877362401,3.94461072,2523.9,2522.2,3.92695472]
[1769877362607,3.94461072,2523.9,2522.2,4.12549472]
[1769877363104,3.94461072,2523.9,2519.8,0.19873]
[1769877363105,3.94461072,2522.4,2519.6,3.92695472]
[1769877363299,3.94461072,2521.5,2519.6,3.92695472]
[1769877363504,4.14327072,2520.8,2518.0,0.19887]
[1769877363704,6.25996434,2520.6,2518.0,0.51916434]
[1769877363903,3.94461072,2520.4,2518.0,0.51916434]
[1769877364102,3.94461072,2520.4,2518.0,0.00301823]
[1769877364103,3.94461072,2519.9,2518.0,0.00301823]
[1769877364309,0.19872,2520.0,2518.0,0.00301823]
[1769877364310,3.94461072,2519.7,2518.0,0.00301823]
[1769877364503,3.94461072,2519.5,2516.9,0.19896]
[1769877364710,3.94461072,2519.2,2516.2,5.896]
[1769877364910,3.94461072,2518.8,2516.0,0.19903]
[1769877365111,3.94461072,2518.6,2516.0,0.19903]
[1769877365310,3.94461072,2518.6,2515.3,3.63913287]
[1769877365311,3.94461072,2518.4,2515.3,3.63913287]
[1769877365615,3.94461072,2518.4,2515.4,3.92695472]
[1769877365616,7.33729966,2518.3,2515.4,3.92695472]
[1769877365809,3.9495618,2518.4,2516.1,3.92695472]
[1769877366116,3.9495618,2518.4,2516.1,4.12597472]
[1769877366610,0.00495108,2518.4,2516.3,3.92695472]
[1769877366909,0.00495108,2518.4,2515.5,3.571]
[1769877366910,0.00495108,2518.4,2517.1,3.70767794]
[1769877367211,0.00495108,2518.4,2517.1,3.71056493]
[1769877368814,4.00170992,2518.4,2517.1,3.71056493]
[1769877369115,0.00495108,2518.4,2517.1,3.71056493]
[1769877369415,4.00170992,2518.4,2517.1,3.71056493]
[1769877370009,4.00170992,2518.4,2517.1,0.00288699]
[1769877371617,0.00495108,2518.4,2517.1,3.71056493]
[1769877373010,4.00170992,2518.4,2517.1,3.71056493]
[1769877373917,0.00495108,2518.4,2517.1,3.71056493]
[1769877375713,3.99675884,2519.3,2517.5,3.70767794]
[1769877375912,3.99675884,2519.3,2517.5,3.90658794]
[1769877376115,3.99675884,2520.0,2517.9,3.70767794]
[1769877376314,3.99675884,2520.0,2518.1,3.90653794]
[1769877376525,3.99675884,2520.0,2518.3,3.70767794]
[1769877376816,4.00086519,2520.0,2518.3,3.70767794]
[1769877377611,3.99675884,2519.8,2517.9,3.70767794]
[1769877378114,3.99675884,2519.8,2518.0,0.19887]
[1769877378320,0.00410635,2520.0,2518.1,3.90653794]
[1769877379324,0.00410635,2520.0,2518.2,0.19886]
[1769877379523,0.00410635,2520.0,2518.3,3.70767794]
[1769877380926,0.00410635,2520.0,2518.6,3.70767794]
[1769877381727,4.00086519,2520.0,2518.6,3.70767794]
[1769877383330,0.00410635,2520.0,2518.6,3.70767794]
[1769877383528,4.00086519,2520.0,2518.6,3.70767794]
[1769877384520,3.966,2520.8,2518.6,3.70767794]
[1769877384721,3.99675884,2521.7,2520.0,3.70767794]
[1769877385328,3.99675884,2521.7,2519.6,3.70767794]
[1769877385627,3.99675884,2521.7,2519.6,0.00374422]
[1769877385832,3.99675884,2521.5,2519.6,0.00374422]
[1769877386232,3.99675884,2521.2,2519.6,0.00374422]
[1769877387429,3.99675884,2521.2,2519.6,3.71142216]
[1769877387831,3.99675884,2521.2,2519.8,3.70767794]
[1769877388029,3.99675884,2521.2,2519.6,0.00374422]
[1769877388734,3.99675884,2521.0,2518.6,3.70767794]
[1769877389331,3.99675884,2521.0,2518.6,3.90649794]
[1769877389529,3.99675884,2521.0,2518.9,3.70767794]
[1769877389734,3.99675884,2521.0,2519.2,0.19878]
[1769877390233,3.99675884,2521.0,2518.9,3.71172321]
[1769877391335,3.99675884,2520.8,2518.9,3.71172321]
[1769877391734,3.99675884,2520.8,2519.1,3.70767794]
[1769877391934,3.99675884,2520.8,2519.1,3.90645794]
[1769877392635,3.99675884,2520.6,2518.9,0.00404527]
[1769877392829,3.99675884,2520.4,2518.9,0.00404527]
[1769877393034,3.99675884,2520.2,2518.9,0.00404527]
[1769877393229,3.99675884,2520.0,2518.9,0.00404527]
[1769877394540,3.99675884,2520.3,2518.9,3.71172321]
[1769877394741,3.99675884,2520.1,2518.9,3.71172321]
[1769877395337,4.99535637,2520.0,2518.9,3.71172321]
[1769877395534,3.99675884,2520.1,2518.9,3.71172321]
[1769877398745,3.99675884,2520.1,2518.9,0.00404527]
[1769877398945,3.66382962,2519.9,2518.9,0.00404527]
[1769877399147,3.66868524,2519.9,2518.9,0.00404527]
[1769877399342,3.66868524,2519.9,2518.9,3.90831044]
[1769877399646,3.66382962,2519.7,2518.2,3.90426517]
[1769877399842,3.66382962,2519.7,2518.0,0.19887]
[1769877400148,3.66382962,2519.5,2517.9,3.90426517]
[1769877400340,3.66382962,2519.3,2517.9,3.90426517]
[1769877400736,3.66382962,2519.3,2517.9,3.90930488]
[1769877401142,3.64592288,2519.1,2517.9,3.90930488]
[1769877403139,34.73030433,2519.6,2517.9,3.90930488]
[1769877403347,3.64592288,2519.4,2518.1,3.70427626]
[1769877403644,3.64592288,2519.7,2518.3,3.70427626]
[1769877403845,3.64592288,2519.5,2518.3,3.70427626]
[1769877404238,3.64592288,2519.5,2518.4,3.90311626]
[1769877406149,4.93698465,2519.4,2518.1,3.70427626]
[1769877406340,4.93698465,2519.3,2518.1,3.70427626]
[1769877406539,3.64592288,2519.5,2518.1,3.70427626]
[1769877406850,3.64592288,2519.3,2518.0,0.19887]
[1769877407150,3.64592288,2519.3,2517.9,0.00503971]
[1769877407151,3.64592288,2518.9,2517.9,0.0041339]
[1769877407346,3.64592288,2518.7,2517.9,0.0041339]
[1769877407647,3.64592288,2519.1,2517.9,3.70841016]
[1769877408546,3.64592288,2519.4,2518.2,3.70427626]
[1769877409546,3.64592288,2519.4,2518.1,0.19887]
[1769877409744,3.64592288,2519.4,2518.1,3.90314626]
[1769877410352,3.64592288,2519.8,2518.1,3.90314626]
[1769877410657,34.73515995,2519.9,2518.1,3.90314626]
[1769877410658,3.64592288,2519.6,2518.1,3.90314626]
[1769877410852,3.64592288,2519.6,2518.3,3.70427626]
[1769877411052,3.6507785,2519.9,2518.5,3.70427626]
[1769877411357,3.64592288,2519.7,2518.5,3.70427626]
[1769877412055,4.93340044,2519.6,2518.0,3.70427626]
[1769877412258,3.64592288,2519.4,2518.0,3.70427626]
[1769877412447,3.64592288,2519.2,2517.9,0.0041339]
[1769877412758,3.64592288,2519.0,2517.9,0.0041339]
[1769877413957,3.64592288,2518.8,2517.9,0.0041339]
[1769877414158,3.64592288,2518.6,2517.9,0.0041339]
[1769877416162,3.64592288,2518.6,2517.3,3.70427626]
[1769877416555,3.64592288,2518.6,2517.3,3.90320626]
[1769877416759,3.64592288,2519.4,2517.3,3.90320626]
[1769877416959,3.64592288,2519.2,2517.3,3.90320626]